Cogmind - Beta 16 @@@ ROGUE MODE // 2025.12.05 @ 10:29:36 Player: Lazz Result: Destroyed by Lightning with EMDS Performance ------------- Evolutions (7) 3500 Regions Visited (19) 3800 Robots Destroyed (93) 465 Value Destroyed (2828) 2828 Prototype IDs (22) 440 Alien Tech Used (3) 600 Bonus (2852) 2852 TOTAL SCORE: 14485 Bonus ------- Follower Combat Kills 52 Met Zhirov 300 Scanned by Researcher 500 Met Sigix 2000 Cogmind --------- Core Integrity 0/1300 Matter 76/300 Energy 99/100 System Corruption 4% Temperature Cool (0) Movement Core (50) Location -3/Quarantine Parts ------- > --- POWER (2) -------- (None) > --- PROPULSION (5) --- (None) > --- UTILITY (12) ----- Advanced Sensor Array Improved Signal Interpreter Advanced Signal Interpreter > --- WEAPON (2) ------- (None) > --- INVENTORY (5) ---- Micro Antimatter Reactor Quantum Rifle Quantum Rifle Sigix Containment Pod Peak State ------------ > --- POWER ------------ Light Nuclear Core Micro Nuclear Core > --- PROPULSION ------- Advanced Myomer Leg Armored Huge Wheel Armored Huge Wheel > --- UTILITY ---------- Advanced Power Amplifier Huge Storage Unit Makeshift Trap Scanner Improved Signal Interpreter Improved Transmission Jammer Experimental Propulsion Shielding Improved Weapon Shielding Advanced Force Field > --- WEAPON ----------- Rocket Array Power Maul > --- INVENTORY -------- Makeshift Leg Makeshift Leg Advanced Myomer Leg Advanced Myomer Leg Improved VTOL Module Energy Well Compact Matter Pod Advanced Weight Redist. System Precision Energy Filter Makeshift Hacking Suite Makeshift Hacking Suite Makeshift Hacking Suite Transdimensional Reconstructor Missile Launcher Missile Launcher Makeshift Sword Makeshift Sword Makeshift Sword Lance [Rating: 89] Favorites ----------- Power Reinforced Deuterium Engine Engine Reinforced Deuterium Engine Power Core Light Nuclear Core Reactor Particle Reactor Propulsion Improved VSS Leg Treads Medium Treads Leg Improved VSS Leg Wheel Wheel Hover Unit Antigrav Array Flight Unit Improved VTOL Module Utility Huge Storage Unit Device Improved Sensor Array Storage Huge Storage Unit Processor Improved Signal Interpreter Hackware Makeshift Hacking Suite Protection Improved Light Armor Plating Weapon Makeshift Sword Energy Gun Makeshift Laser Energy Cannon Heavy Ion Cannon Ballistic Gun Minigun Ballistic Cannon Enhanced Gauss Cannon Launcher Rocket Array Impact Weapon Power Maul Slashing Weapon Makeshift Sword Piercing Weapon Lance Build | -11 -10 -10 -9 -9 -8 -7 -7 -7 -6 -6 -6 -5 -5 -5 -5 -4 -4 -3 -3 ------- Run | Yrd Mat Min Mat Min Mat Fac Low Low Fac Low Low Fac Upp Upp Zhi Pro Fac Res Qua Slots Evolved 14 | . . . 2 . 2 2 . . 2 . . 2 . . . . 2 2 . Power 1 | . . . . . . . . . . . . 1 . . . . . . . Propulsion 3 | . . . 1 . . . . . 2 . . . . . . . . . . Utility 10 | . . . 1 . 2 2 . . . . . 1 . . . . 2 2 . Weapon . | . . . . . . . . . . . . . . . . . . . . Parts Attached 131 | 7 3 4 10 1 3 15 16 . 9 2 . 15 4 2 2 5 18 6 9 Power 15 | 1 . 1 1 . 1 1 2 . . . . 3 . . . . 2 3 . Engine 8 | 1 . 1 1 . 1 . 2 . . . . . . . . . 1 1 . Core 5 | . . . . . . 1 . . . . . 3 . . . . 1 . . Reactor 2 | . . . . . . . . . . . . . . . . . . 2 . Propulsion 40 | 2 2 . 5 1 . 5 5 . 6 . . 2 . 1 1 2 5 . 3 Treads 1 | . . . . . . . 1 . . . . . . . . . . . . Leg 12 | . . . . . . . 2 . 6 . . . . 1 1 2 . . . Wheel 24 | 2 2 . 5 1 . 5 1 . . . . 2 . . . . 5 . 1 Hover 2 | . . . . . . . . . . . . . . . . . . . 2 Flight 1 | . . . . . . . 1 . . . . . . . . . . . . Utility 51 | 2 1 . 1 . 2 4 5 . 2 1 . 9 3 1 1 2 10 3 4 Device 26 | 1 . . 1 . 1 1 . . 2 1 . 6 2 . . 1 4 3 3 Storage 3 | 1 1 . . . . . 1 . . . . . . . . . . . . Processor 10 | . . . . . 1 2 2 . . . . 2 . 1 . 1 . . 1 Hackware 2 | . . . . . . . . . . . . . . . . . 2 . . Protection 10 | . . . . . . 1 2 . . . . 1 1 . 1 . 4 . . Artifact . | . . . . . . . . . . . . . . . . . . . . Weapon 25 | 2 . 3 3 . . 5 4 . 1 1 . 1 1 . . 1 1 . 2 Energy Gun 4 | 2 . 1 . . . . 1 . . . . . . . . . . . . Energy Cannon 1 | . . . . . . 1 . . . . . . . . . . . . . Ballistic Gun 5 | . . 2 2 . . 1 . . . . . . . . . . . . . Ballistic Cannon 1 | . . . . . . . . . . . . . . . . . . . 1 Launcher 6 | . . . 1 . . 1 2 . . 1 . . 1 . . . . . . Special Weapon . | . . . . . . . . . . . . . . . . . . . . Impact Weapon 1 | . . . . . . . . . . . . 1 . . . . . . . Slashing Weapon 6 | . . . . . . 2 1 . 1 . . . . . . . 1 . 1 Piercing Weapon 1 | . . . . . . . . . . . . . . . . 1 . . . Special Melee Weapon . | . . . . . . . . . . . . . . . . . . . . Unidentified Prototypes 8 | . . . . . 1 1 1 . . . . 1 . . 2 1 . . 1 Parts Lost 93 | . 1 4 4 1 . 15 6 . . 1 . 18 . . . 13 6 16 8 Power 12 | . 1 1 . . . 1 2 . . . . 2 . . . 2 1 2 . Propulsion 30 | . . . 3 1 . 7 3 . . . . 5 . . . 3 1 3 4 Utility 35 | . . . . . . 5 . . . 1 . 9 . . . 6 2 9 3 Weapon 16 | . . 3 1 . . 2 1 . . . . 2 . . . 2 2 2 1 Highest Loss Streak 18 | . 1 4 3 1 . 8 4 . . 1 . 18 . . . 7 5 15 4 To Critical Strikes 1 | . . . . . . . . . . . . . . . . . . . 1 Average Backups 16 | 4 6 6 13 19 23 22 22 25 23 22 23 20 11 12 17 10 4 3 3 Power 1 | . . . . 1 3 3 3 3 3 3 3 1 . . . . . . . Propulsion 2 | 2 4 3 4 4 4 3 1 1 2 3 3 2 1 1 3 2 . 1 . Utility 5 | . . 1 6 9 6 6 7 9 7 6 10 9 5 6 7 4 1 . . Weapon 7 | 1 1 1 3 4 8 9 10 12 10 9 7 6 5 5 6 4 3 1 2 Tool/Special . | . . . . . . . . . . . . . . . . . . . . Unused Backups 28 | . . . 1 . 7 2 . . 3 3 . . . . 1 6 1 . 4 Power 3 | . . . . . 2 . . . . . . . . . . . . . 1 Propulsion 3 | . . . . . 2 . . . . . . . . . . 1 . . . Utility 13 | . . . . . 1 . . . 3 2 . . . . 1 4 1 . 1 Weapon 9 | . . . 1 . 2 2 . . . 1 . . . . . 1 . . 2 Tool/Special . | . . . . . . . . . . . . . . . . . . . . Average Slot Usage (%) 80 | . 95 87 91 97 98 85 71 100 98 99 100 77 72 84 83 35 64 73 22 Engine 3 | . 10 2 4 11 9 5 2 7 6 6 6 2 . . . . 4 . . Core 1 | . . . . . . 1 . . . . . 4 11 11 11 2 3 . . Leg 10 | . . . . . . . 8 15 31 33 33 19 . 2 5 3 . . . Wheel 9 | . 28 28 32 31 27 19 2 7 . . . 2 11 11 11 2 13 14 4 Device 11 | . 14 14 21 22 26 16 . . 9 12 13 11 27 35 28 8 11 17 5 Storage 6 | . 14 14 11 11 9 7 7 7 6 6 6 5 5 5 5 2 . . . Processor 13 | . . . . . 8 15 30 30 16 13 13 8 . . 5 7 10 8 5 Protection 5 | . . . . . . 4 1 15 13 13 13 8 3 5 5 . 11 15 . Energy Gun 3 | . 28 24 . . . . 4 7 2 . . . . . . . . . . Ballistic Gun 1 | . . 2 14 21 18 6 . . . . . . . . . . . . . Launcher 1 | . . . 7 . . . 3 . . . 3 3 5 5 1 . . . . Slashing Weapon 4 | . . . . . . 4 5 7 9 12 9 3 . . . . . 3 2 Peak Build Rating 89 | 7 7 8 19 22 29 39 49 49 67 69 70 80 79 85 87 89 66 85 57 Average Rating 45 | 4 6 6 15 20 27 32 35 49 64 66 69 60 71 81 82 34 49 77 39 On Entrance 40 | . 7 6 7 17 22 29 28 49 49 66 69 70 60 79 83 85 13 65 10 Avg Prop Armor Cover (%) 10 | . . . . . . . 17 12 12 . . . . 5 5 5 . . 18 Naked Turns . | . . . . . . . . . . . . . . . . . . . . Heaviest Build 133 | 11 86 86 95 95 98 104 106 106 109 113 113 119 133 133 132 121 49 81 18 Greatest Support 81 | 26 26 20 38 38 32 38 35 16 81 81 81 81 56 56 56 80 68 58 46 Greatest Overweight (x) 9 | 1 4 4 2 4 3 8 9 6 7 1 1 2 2 2 2 3 2 2 5 Average Overweight (x) 2 | . 1 4 2 2 2 3 5 6 1 1 1 1 2 2 2 . . . . Largest Inventory Capacity 25 | 8 25 25 25 25 25 25 25 25 25 25 25 25 25 25 25 25 5 5 5 Average Capacity 22 | 7 22 25 25 25 25 25 25 25 25 25 25 25 25 25 25 14 5 5 5 Most Carried 25 | 8 7 15 18 23 25 25 25 25 25 25 25 25 18 21 25 20 5 5 5 Average Carried 17 | 4 6 6 13 19 23 22 22 25 24 24 25 21 14 18 21 10 4 4 3 Final Capacity 25 | 8 25 25 25 25 25 25 25 25 25 25 25 25 25 25 25 5 5 5 5 Final Carried 25 | 6 5 12 18 23 24 20 25 25 25 25 25 12 16 20 20 5 3 5 5 Class Distribution -------------------- 58% | Mutant 16% | Gladiator 10% | Scavenger-Mutant 3% | Scavenger-Assassin 3% | Infiltrator-Mutant 3% | Assassin 3% | Scavenger-Skirmisher Dominant Class ---------------- Mutant | -10/Materials Mutant | -10/Mines Scavenger-Mutant | -9/Materials Scavenger-Mutant | -9/Mines Scavenger-Skirmisher | -8/Materials Assassin | -7/Factory Mutant | -7/Lower Caves Mutant | -7/Lower Caves Gladiator | -6/Factory Gladiator | -6/Lower Caves Gladiator | -6/Lower Caves Scavenger-Assassin | -5/Factory Mutant | -5/Upper Caves Mutant | -5/Upper Caves Mutant | -5/Zhirov Mutant | -4/Proximity Caves Scavenger-Mutant | -4/Factory Infiltrator-Mutant | -3/Research Mutant | -3/Quarantine Resources | -11 -10 -10 -9 -9 -8 -7 -7 -7 -6 -6 -6 -5 -5 -5 -5 -4 -4 -3 -3 ----------- Run | Yrd Mat Min Mat Min Mat Fac Low Low Fac Low Low Fac Upp Upp Zhi Pro Fac Res Qua Matter Collected 2720 | 260 35 35 45 208 48 267 704 . 290 98 . 106 78 48 150 30 240 27 51 Remotely . | . . . . . . . . . . . . . . . . . . . . Salvage Created 2795 | 107 218 97 200 117 99 181 579 . 287 201 51 139 128 23 . . 347 21 . Parts 160 | 8 17 2 15 7 4 19 13 . 17 12 4 11 3 3 . . 22 3 . Haulers Intercepted 5 | . . . 2 . 2 . . . . 1 . . . . . . . . . Recyclers Shooed 4 | 1 . . . . 1 . . . 2 . . . . . . . . . . Parts Field Recycled . | . . . . . . . . . . . . . . . . . . . . Retrieved Matter . | . . . . . . . . . . . . . . . . . . . . Parts Self-Destructed 35 | . . . . . . . 7 . . 22 3 . . 3 . . . . . Prevented . | . . . . . . . . . . . . . . . . . . . . Parts Restored . | . . . . . . . . . . . . . . . . . . . . Kills | -11 -10 -10 -9 -9 -8 -7 -7 -7 -6 -6 -6 -5 -5 -5 -5 -4 -4 -3 -3 ------- Run | Yrd Mat Min Mat Min Mat Fac Low Low Fac Low Low Fac Upp Upp Zhi Pro Fac Res Qua Combat Hostiles Destroyed 62 | . 8 2 6 3 . 7 17 . 2 4 3 3 3 1 . 2 1 . . Melee 5 | . . . . . . 1 . . 2 1 . . . . . . 1 . . Guns 14 | . 8 2 . 3 . 1 . . . . . . . . . . . . . AOE 43 | . . . 6 . . 5 17 . . 3 3 3 3 1 . 2 . . . Classes Destroyed 14 | 2 2 . 5 1 . 2 1 . . . . . 1 . . . . . . Worker 13 | . . . 1 . . 1 . . 4 . . 1 . . . . 6 . . Builder 5 | . . . 2 . . 1 . . . . . 1 . . . . 1 . . Tunneler 4 | 2 . . . . . . . . . . . 1 . . . . . 1 . Hauler 5 | . . . 2 . 2 . . . . 1 . . . . . . . . . Recycler 3 | 1 . . . . . . . . 1 . . . . . . . 1 . . Minesweeper 1 | . . . . . . . . . . . . . 1 . . . . . . Swarmer 17 | . 3 . 3 . . 4 1 . . 3 3 . . . . . . . . Grunt 28 | . 5 2 1 2 . . 13 . . . . 2 3 . . . . . . Brawler 3 | . . . . 1 . . 2 . . . . . . . . . . . . Duelist 1 | . . . 1 . . . . . . . . . . . . . . . . Sentry 4 | . . . 1 . . . 1 . . . . 1 . . . . 1 . . Hunter 5 | . . . . . . 1 . . . 1 . . . 1 . 2 . . . Programmer 4 | . . . . . . 2 . . 2 . . . . . . . . . . Samaritan 1 | . . . . . . . 1 . . . . . . . . . . . . Best Kill Streak 9 | 3 8 2 7 3 1 5 9 . 3 3 3 4 3 1 . 2 4 1 . Combat Bots Only 9 | . 8 2 3 3 . 5 9 . 1 3 3 3 3 1 . 2 1 . . Max Kills in Single Turn 4 | 1 1 1 3 1 1 4 4 . 1 2 3 4 2 1 . 1 1 1 . Gunslinging . | . . . . . . . . . . . . . . . . . . . . Exploded 4 | . . . 2 . . 4 4 . . 2 3 3 2 1 . 1 . . . Melee 1 | . . . . . . 1 . . 1 1 . . . . . . 1 . . Uniques/NPCs Destroyed . | . . . . . . . . . . . . . . . . . . . . Combat | -11 -10 -10 -9 -9 -8 -7 -7 -7 -6 -6 -6 -5 -5 -5 -5 -4 -4 -3 -3 -------- Run | Yrd Mat Min Mat Min Mat Fac Low Low Fac Low Low Fac Upp Upp Zhi Pro Fac Res Qua Hostile Shots Fired 1178 | . 51 27 38 17 2 272 47 . 24 52 1 102 15 12 . 131 54 128 205 Missed 367 | . 13 1 14 7 2 111 13 . 5 7 . 32 3 1 . 39 17 30 72 Hits 811 | . 38 26 24 10 . 161 34 . 19 45 1 70 12 11 . 92 37 98 133 Melee 9 | . . . 3 1 . . 2 . . . . . . . . 3 . . . Projectile 802 | . 38 26 21 9 . 161 32 . 19 45 1 70 12 11 . 89 37 98 133 Critical Strikes 23 | . . 1 . 1 . 1 3 . . . . 3 . . . 7 1 2 4 Damage Taken 13961 | . 382 307 344 129 . 1580 721 . 283 759 76 2175 223 136 . 1926 782 2353 1785 Core 3567 | . 124 68 94 11 . 440 202 . 75 120 . 351 40 18 . 516 193 506 809 Absorbed by Shields 344 | . . . . . . . . . . . . . 120 87 . 77 . 60 . Redirected to Shielding 215 | . . . . . . . . . . . . . . 32 . 183 . . . Regen/Repaired (Parts) 158 | . . . . . . . . . . . . . . . . . . . 158 Core Remaining (%) 58 | 100 . 23 . 73 100 . . 8 . . 77 . . . . 3 83 . . Volleys Fired 120 | 11 22 9 15 9 9 13 12 . . 3 1 2 3 2 . 5 2 1 1 Largest 2 | 2 2 2 2 2 2 2 2 . . 1 1 1 1 1 . 1 1 1 1 Hottest 93 | 80 80 80 55 50 50 93 72 . . 36 45 45 45 45 . 45 36 36 47 Shots Fired 207 | 22 44 17 29 18 18 21 18 . . 3 1 2 3 2 . 5 2 1 1 Gun 147 | 22 44 17 16 18 18 12 . . . . . . . . . . . . . Cannon 7 | . . . . . . 6 . . . . . . . . . . . . 1 Launcher 53 | . . . 13 . . 3 18 . . 3 1 2 3 2 . 5 2 1 . Special . | . . . . . . . . . . . . . . . . . . . . Kinetic 75 | . . 10 16 18 18 12 . . . . . . . . . . . . 1 Thermal 75 | 22 44 3 . . . 6 . . . . . . . . . . . . . Explosive 53 | . . . 13 . . 3 18 . . 3 1 2 3 2 . 5 2 1 . Electromagnetic 4 | . . 4 . . . . . . . . . . . . . . . . . Robot Hit Streak 10 | 4 8 6 6 3 2 10 6 . . 1 2 6 9 5 . 6 . . . Robot Miss Streak 7 | 2 1 1 1 3 4 7 3 . . 1 1 1 1 2 . 7 . . . Penetration Max . | . . . . . . . . . . . . . . . . . . . . Secondary Targets 4 | . 3 . . 1 . . . . . . . . . . . . . . . Max Gunslinging Chain 1 | . 1 . . 1 . . . . . . . . . . . . . . . Shots Hit Robots 191 | 13 33 13 14 11 8 19 17 . 21 14 1 4 3 2 . 4 12 2 . Core Hits 193 | 4 13 6 18 3 2 21 47 . 6 6 6 16 12 3 . 18 9 3 . Critical Kills . | . . . . . . . . . . . . . . . . . . . . Critical Parts Destroyed . | . . . . . . . . . . . . . . . . . . . . Critical Strikes 3 | . . . . . . . . . . 2 . . . . . . 1 . . Sever 2 | . . . . . . . . . . 2 . . . . . . . . . Impale 1 | . . . . . . . . . . . . . . . . . 1 . . Melee Attacks 169 | . . . . . . 20 4 . 33 18 . 40 1 . . . 17 22 14 Impact 20 | . . . . . . . . . . . . 19 1 . . . . . . Slashing 133 | . . . . . . 20 4 . 33 18 . 21 . . . . 1 22 14 Piercing 16 | . . . . . . . . . . . . . . . . . 16 . . Sneak Attacks 24 | . . . . . . 1 1 . 7 1 . 2 1 . . . 9 2 . Combat Hostiles . | . . . . . . . . . . . . . . . . . . . . Follow-up Attacks 4 | . . . . . . . . . 3 1 . . . . . . . . . Damage Inflicted 9248 | 158 359 134 664 220 145 615 2218 . 1033 718 132 575 394 146 . 794 741 191 11 Guns 1272 | 158 359 134 85 220 145 171 . . . . . . . . . . . . . Cannons 109 | . . . . . . 109 . . . . . . . . . . . . . Explosions 4744 | . . . 579 . . 230 1933 . . 206 132 430 267 146 . 794 . 27 . Melee 3079 | . . . . . . 105 285 . 1033 512 . 145 127 . . . 734 138 . Ramming 44 | . . . . . . . . . . . . . . . . . 7 26 11 Kinetic 680 | . . 59 85 220 145 171 . . . . . . . . . . . . . Thermal 646 | 158 359 20 . . . 109 . . . . . . . . . . . . . Explosive 4744 | . . . 579 . . 230 1933 . . 206 132 430 267 146 . 794 . 27 . Electromagnetic 55 | . . 55 . . . . . . . . . . . . . . . . . Impact 200 | . . . . . . . . . . . . 73 127 . . . . . . Slashing 2145 | . . . . . . 105 285 . 1033 512 . 72 . . . . . 138 . Piercing 734 | . . . . . . . . . . . . . . . . . 734 . . Highest Corruption 16 | . . . . 5 . 9 9 9 1 1 1 16 16 16 16 16 8 . 3 Average Corruption 8 | . . . . 5 . 7 9 9 1 1 1 14 16 16 16 16 4 . 2 Corruption Purged . | . . . . . . . . . . . . . . . . . . . . Corruption Blocked . | . . . . . . . . . . . . . . . . . . . . Effects 205 | . . . . 6 . 11 88 3 6 8 . 5 21 22 8 20 2 . 5 Message Errors 54 | . . . . . . 2 22 . 3 2 . 2 3 9 4 4 1 . 2 Matter Fused 46 | . . . . 2 . 2 23 . . 2 . 1 6 4 2 4 . . . Heat Flow Errors 22 | . . . . 1 . . 11 . . 2 . . 3 2 1 1 . . 1 Energy Discharges 39 | . . . . 2 . 4 19 2 1 1 . 2 2 3 . 3 . . . Parts Rejected 3 | . . . . . . . . . . . . . . . . 2 1 . . Parts Fused 2 | . . . . . . . 1 . . . . . . . . 1 . . . Data Loss (minor) 19 | . . . . 1 . . 7 . 2 1 . . 4 2 . 2 . . . Data Loss (major) 10 | . . . . . . 1 3 1 . . . . 1 2 1 . . . 1 Misfires 1 | . . . . . . . . . . . . . 1 . . . . . . Alerts 3 | . . . . . . . 2 . . . . . . . . . . . 1 Misdirections 3 | . . . . . . . . . . . . . . . . 3 . . . Weapon Failures 3 | . . . . . . 2 . . . . . . 1 . . . . . . Overload Shots . | . . . . . . . . . . . . . . . . . . . . Overflow Damage 636 | . . . 6 . . 17 197 . 114 6 . 65 87 19 . 20 78 27 . Projectiles . | . . . . . . . . . . . . . . . . . . . . Explosions 109 | . . . 6 . . 17 47 . . . . . . 19 . 20 . . . Melee 527 | . . . . . . . 150 . 114 6 . 65 87 . . . 78 27 . Knockbacks . | . . . . . . . . . . . . . . . . . . . . Impact . | . . . . . . . . . . . . . . . . . . . . Kinetic . | . . . . . . . . . . . . . . . . . . . . Secondary . | . . . . . . . . . . . . . . . . . . . . Self-Inflicted Damage 752 | . . . 39 . . 64 100 . . . 57 126 135 43 . 167 3 13 5 Shots 37 | . . . 2 . . 3 4 . . . 3 6 6 2 . 11 . . . Rammed 7 | . . . . . . . . . . . . . . . . . 1 2 4 Targets Rammed 7 | . . . . . . . . . . . . . . . . . 1 2 4 Kicked . | . . . . . . . . . . . . . . . . . . . . Crushed . | . . . . . . . . . . . . . . . . . . . . Highest Temperature 268 | 102 246 79 20 139 . 14 236 . . 268 . 17 222 120 152 136 . 14 100 Average Temperature 73 | 43 97 41 8 25 . 7 102 . . 119 . 7 89 58 80 46 . 4 57 Received Heat Transfer 2219 | . 186 162 69 54 . 204 261 . . . 9 576 38 . . 338 18 237 67 Effects 3 | . 1 . . . . . 1 . . 1 . . . . . . . . . Energy Bleed 1 | . 1 . . . . . . . . . . . . . . . . . . Interference 2 | . . . . . . . 1 . . 1 . . . . . . . . . Siege Activations . | . . . . . . . . . . . . . . . . . . . . Martial Activations . | . . . . . . . . . . . . . . . . . . . . Shielding Activations . | . . . . . . . . . . . . . . . . . . . . Robots Disrupted . | . . . . . . . . . . . . . . . . . . . . Combat Hostiles . | . . . . . . . . . . . . . . . . . . . . Robots Corrupted 1 | . . . . . . . . . . . . . 1 . . . . . . Combat Hostiles . | . . . . . . . . . . . . . . . . . . . . Parts Fried 1 | . . . . . . . . . . . . . 1 . . . . . . Impact Corruptions 4 | . . . . . . . . . . . . 1 3 . . . . . . Robots Melted . | . . . . . . . . . . . . . . . . . . . . Combat Hostiles . | . . . . . . . . . . . . . . . . . . . . Parts Melted . | . . . . . . . . . . . . . . . . . . . . Heat Transferred 1373 | 350 825 50 . . . 148 . . . . . . . . . . . . . Parts Sabotaged . | . . . . . . . . . . . . . . . . . . . . Parts Stolen 1 | . . . . . . . 1 . . . . . . . . . . . . Parts Stripped . | . . . . . . . . . . . . . . . . . . . . Power Chain Reactions . | . . . . . . . . . . . . . . . . . . . . Alert | -11 -10 -10 -9 -9 -8 -7 -7 -7 -6 -6 -6 -5 -5 -5 -5 -4 -4 -3 -3 ------- Run | Yrd Mat Min Mat Min Mat Fac Low Low Fac Low Low Fac Upp Upp Zhi Pro Fac Res Qua Maximum Alert Level . | . . . . . . . . . . . . . . . . . . . . Low Security (%) 100 | 100 100 100 100 100 100 100 . . 100 . . 100 . . . . 100 100 100 Level 1 . | . . . . . . . . . . . . . . . . . . . . Level 2 . | . . . . . . . . . . . . . . . . . . . . Level 3 . | . . . . . . . . . . . . . . . . . . . . Level 4 . | . . . . . . . . . . . . . . . . . . . . Level 5 . | . . . . . . . . . . . . . . . . . . . . High Security . | . . . . . . . . . . . . . . . . . . . . Max Security . | . . . . . . . . . . . . . . . . . . . . Peak Influence 168 | 5 150 58 165 60 16 168 . . 34 . . 113 . . . . 65 23 160 Initial 58 | . . 58 6 5 . . . . . . . 37 . . . . . 15 . Average 20 | 1 36 8 31 18 1 31 . . 3 . . 22 . . . . 17 6 77 Influence Increases 2765 | 15 220 50 291 70 28 286 403 . 118 105 70 167 75 30 . 185 229 136 287 Destroy 0b10 Robot/C 1260 | . 160 40 120 60 . 140 360 . 40 80 60 60 60 20 . 40 20 . . Destroy 0b10 Robot/NC 160 | 15 . . 25 . 10 10 5 . 25 5 . 15 5 . . . 40 5 . Destroy Leader 258 | . 30 10 34 10 4 40 30 . 20 20 10 10 10 10 . 10 10 . . Allied During Kill 8 | . . . . . . . 8 . . . . . . . . . . . . Successful Hack 72 | . . . 8 . 14 . . . . . . . . . . . 18 25 7 Disable Machine 150 | . . . 15 . . 30 . . 30 . . . . . . . 15 . 60 Destroy Structure 347 | . . . 74 . . 66 . . 3 . . 82 . . . . 66 46 10 Partial Spotted 75 | . . . . . . . . . . . . . . . . . 45 . 30 Lose Combat Pursuer 435 | . 30 . 15 . . . . . . . . . . . . 135 15 60 180 Influence Decreases 2673 | 15 70 182 294 85 28 174 515 . 118 105 10 181 121 30 . 185 198 167 195 Entered New Map 213 | . . 92 12 10 . . 42 . . . . 23 18 . . . . 16 . Time Decay 1883 | 15 60 90 97 70 28 107 425 . 118 105 10 112 103 30 . 130 123 115 145 Lost Part 367 | . 10 . 30 5 . 67 48 . . . . 46 . . . 45 40 36 40 Lost Ally 20 | . . . . . . . . . . . . . . . . 10 . . 10 Purge Threat 190 | . . . 155 . . . . . . . . . . . . . 35 . . Squads Dispatched 26 | . 4 . 3 1 . 3 . . 4 . . 2 . . . . 4 2 3 Investigation 7 | . 1 . 1 1 . 1 . . . . . . . . . . 1 1 1 Extermination 6 | . . . . . . 1 . . 1 . . 1 . . . . 1 1 1 Reinforcement 11 | . 3 . 2 . . 1 . . 1 . . 1 . . . . 2 . 1 Assault 2 | . . . . . . . . . 2 . . . . . . . . . . Garrison . | . . . . . . . . . . . . . . . . . . . . Intercept . | . . . . . . . . . . . . . . . . . . . . Searches Triggered . | . . . . . . . . . . . . . . . . . . . . Construction Impeded 2 | . . . . . . 1 . . . . . 1 . . . . . . . Haulers Reinforced . | . . . . . . . . . . . . . . . . . . . . Active Scanning Responses . | . . . . . . . . . . . . . . . . . . . . Cargo Convoy Interrupts 1 | . . . . . . . . . 1 . . . . . . . . . . Stealth | -11 -10 -10 -9 -9 -8 -7 -7 -7 -6 -6 -6 -5 -5 -5 -5 -4 -4 -3 -3 --------- Run | Yrd Mat Min Mat Min Mat Fac Low Low Fac Low Low Fac Upp Upp Zhi Pro Fac Res Qua Distress Signals 6 | . 2 1 . . . . . . . . . . . . . . . . 3 Communications Jammed 14 | . . . . . . . . . . . . . . . . . . 14 . Distress Signals 14 | . . . . . . . . . . . . . . . . . . 14 . Times Spotted 156 | . 14 4 12 5 6 9 20 . 5 7 5 3 8 1 . 14 9 12 22 Peak Tracking Total 12 | . 6 2 5 3 3 4 9 . 2 3 4 3 4 1 . 6 4 7 12 Tactical Retreats 17 | . 1 . 1 . . . . . . . . . . . . 4 1 4 6 Traps | -11 -10 -10 -9 -9 -8 -7 -7 -7 -6 -6 -6 -5 -5 -5 -5 -4 -4 -3 -3 ------- Run | Yrd Mat Min Mat Min Mat Fac Low Low Fac Low Low Fac Upp Upp Zhi Pro Fac Res Qua Traps Triggered 3 | . 1 . . . . . . . . . . . . . . . . 1 1 Indirectly . | . . . . . . . . . . . . . . . . . . . . Trap Hack Attempts . | . . . . . . . . . . . . . . . . . . . . Triggered . | . . . . . . . . . . . . . . . . . . . . Disarmed . | . . . . . . . . . . . . . . . . . . . . Reprogrammed . | . . . . . . . . . . . . . . . . . . . . Reused . | . . . . . . . . . . . . . . . . . . . . Traps Extracted . | . . . . . . . . . . . . . . . . . . . . Installed . | . . . . . . . . . . . . . . . . . . . . Triggered . | . . . . . . . . . . . . . . . . . . . . Most Traps Carried 5 | . . . . . . . . . . . . . 5 5 5 . . . . Machines | -11 -10 -10 -9 -9 -8 -7 -7 -7 -6 -6 -6 -5 -5 -5 -5 -4 -4 -3 -3 ---------- Run | Yrd Mat Min Mat Min Mat Fac Low Low Fac Low Low Fac Upp Upp Zhi Pro Fac Res Qua Machines Disabled 10 | . . . 1 . . 2 . . 2 . . . . . . . 1 . 4 Max in Single Turn 1 | . . . 1 . . 1 . . 1 . . . . . . . 1 . 1 Garrison Access 1 | . . . . . . . . . 1 . . . . . . . . . . Machines Repaired . | . . . . . . . . . . . . . . . . . . . . Machines Dismantled . | . . . . . . . . . . . . . . . . . . . . Machines Sabotaged . | . . . . . . . . . . . . . . . . . . . . Overloaded Fab Kills . | . . . . . . . . . . . . . . . . . . . . Hacking | -11 -10 -10 -9 -9 -8 -7 -7 -7 -6 -6 -6 -5 -5 -5 -5 -4 -4 -3 -3 --------- Run | Yrd Mat Min Mat Min Mat Fac Low Low Fac Low Low Fac Upp Upp Zhi Pro Fac Res Qua Machines Accessed 33 | . . . 3 1 3 2 3 . 2 . . . 1 1 8 . 2 4 3 Terminals 16 | . . . 2 . 3 2 . . 1 . . . 1 . . . 2 2 3 Fabricators . | . . . . . . . . . . . . . . . . . . . . Repair Stations . | . . . . . . . . . . . . . . . . . . . . Recycling Units 2 | . . . 1 . . . . . . . . . . . . . . 1 . Scanalyzers 2 | . . . . . . . . . 1 . . . . . . . . 1 . Garrison Access . | . . . . . . . . . . . . . . . . . . . . Total Hacks 98 | . . . 8 1 5 4 7 . 7 . . . 1 1 44 . 5 10 5 Successful 78 | . . . 4 1 4 1 7 . 5 . . . 1 1 44 . 2 6 2 Failed 20 | . . . 4 . 1 3 . . 2 . . . . . . . 3 4 3 Catastrophic 6 | . . . 1 . . 2 . . 1 . . . . . . . 1 . 1 Database Lockouts . | . . . . . . . . . . . . . . . . . . . . Manual 14 | . . . 4 . 1 . . . . . . . . . . . 1 2 6 Terminals 34 | . . . 6 . 5 4 . . 1 . . . 1 . . . 5 7 5 Fabricators . | . . . . . . . . . . . . . . . . . . . . Repair Stations . | . . . . . . . . . . . . . . . . . . . . Recycling Units 3 | . . . 2 . . . . . . . . . . . . . . 1 . Scanalyzers 8 | . . . . . . . . . 6 . . . . . . . . 2 . Garrison Access . | . . . . . . . . . . . . . . . . . . . . Terminal Hacks 70 | . . . 3 1 4 1 7 . . . . . 1 1 44 . 2 4 2 Record 40 | . . . . . . . 5 . . . . . 1 . 32 . . 1 1 Part Schematic 4 | . . . . . . . . . . . . . . . 4 . . . . Robot Analysis 4 | . . . . . . . . . . . . . . . 4 . . . . Prototype ID Bank 5 | . . . . . 1 . . . . . . . . . 4 . . . . Open Door 5 | . . . . 1 . . 2 . . . . . . 1 . . . . 1 Open DSF 1 | . . . . . . 1 . . . . . . . . . . . . . Branch Access Points 2 | . . . 1 . . . . . . . . . . . . . . 1 . Terminal Index 3 | . . . . . 1 . . . . . . . . . . . 1 1 . Unreport Threat 3 | . . . 2 . . . . . . . . . . . . . 1 . . Dispatch Records 1 | . . . . . 1 . . . . . . . . . . . . . . Zone Layout 2 | . . . . . 1 . . . . . . . . . . . . 1 . Fabricator Hacks . | . . . . . . . . . . . . . . . . . . . . Repair Station Hacks . | . . . . . . . . . . . . . . . . . . . . Recycling Unit Hacks 2 | . . . 1 . . . . . . . . . . . . . . 1 . Retrieve Components 2 | . . . 1 . . . . . . . . . . . . . . 1 . Scanalyzer 6 | . . . . . . . . . 5 . . . . . . . . 1 . Insert Component 1 | . . . . . . . . . 1 . . . . . . . . . . Analyze 2 | . . . . . . . . . 2 . . . . . . . . . . Retrieve Study 3 | . . . . . . . . . 2 . . . . . . . . 1 . Garrison Access Hacks . | . . . . . . . . . . . . . . . . . . . . Unauthorized Hacks . | . . . . . . . . . . . . . . . . . . . . Terminals . | . . . . . . . . . . . . . . . . . . . . Fabricators . | . . . . . . . . . . . . . . . . . . . . Repair Stations . | . . . . . . . . . . . . . . . . . . . . Recycling Units . | . . . . . . . . . . . . . . . . . . . . Scanalyzers . | . . . . . . . . . . . . . . . . . . . . Garrison Access . | . . . . . . . . . . . . . . . . . . . . Data Cores Recovered . | . . . . . . . . . . . . . . . . . . . . Used . | . . . . . . . . . . . . . . . . . . . . Hacking Detections 14 | . . . 3 . 1 1 . . 1 . . . . . . . 2 3 3 Full Trace Events 5 | . . . 1 . . 1 . . . . . . . . . . 1 1 1 Feedback Events 1 | . . . . . . . . . . . . . . . . . 1 . . Hackware Fried 1 | . . . . . . . . . . . . . . . . . 1 . . Feedback Blocked . | . . . . . . . . . . . . . . . . . . . . Robot Schematics Acquired . | . . . . . . . . . . . . . . . . . . . . Robots Built . | . . . . . . . . . . . . . . . . . . . . Authchips . | . . . . . . . . . . . . . . . . . . . . Time . | . . . . . . . . . . . . . . . . . . . . Total Robot Build Rating . | . . . . . . . . . . . . . . . . . . . . Part Schematics Acquired 9 | . . . . . . . . . 1 . . . . . 4 . . . 4 Parts Built . | . . . . . . . . . . . . . . . . . . . . Authchips . | . . . . . . . . . . . . . . . . . . . . Time . | . . . . . . . . . . . . . . . . . . . . Total Part Build Rating . | . . . . . . . . . . . . . . . . . . . . Part Studies Acquired 3 | . . . . . . . . . 2 . . . . . . . . 1 . Parts Repaired . | . . . . . . . . . . . . . . . . . . . . Time . | . . . . . . . . . . . . . . . . . . . . Parts Recycled . | . . . . . . . . . . . . . . . . . . . . Recycled Matter . | . . . . . . . . . . . . . . . . . . . . Retrieved Matter . | . . . . . . . . . . . . . . . . . . . . Retrieved Components 3 | . . . 1 . . . . . . . . . . . . . . 2 . Parts Scanalyzed 1 | . . . . . . . . . 1 . . . . . . . . . . Part Schematics Acquired 1 | . . . . . . . . . 1 . . . . . . . . . . Parts Damaged . | . . . . . . . . . . . . . . . . . . . . Bothacking | -11 -10 -10 -9 -9 -8 -7 -7 -7 -6 -6 -6 -5 -5 -5 -5 -4 -4 -3 -3 ------------ Run | Yrd Mat Min Mat Min Mat Fac Low Low Fac Low Low Fac Upp Upp Zhi Pro Fac Res Qua Used RIF Installer . | . . . . . . . . . . . . . . . . . . . . Robots Hacked . | . . . . . . . . . . . . . . . . . . . . Non-combat . | . . . . . . . . . . . . . . . . . . . . Combat . | . . . . . . . . . . . . . . . . . . . . Robot Hacks Applied . | . . . . . . . . . . . . . . . . . . . . Relay Couplers Released 3 | . . . . . . . . . 3 . . . . . . . . . . Machine Destruction 3 | . . . . . . . . . 3 . . . . . . . . . . Fabnet Peak Effective % . | . . . . . . . . . . . . . . . . . . . . Robots Rewired 2 | . . . . . . . 2 . . . . . . . . . . . . Allies Hacked . | . . . . . . . . . . . . . . . . . . . . Hacks Repelled . | . . . . . . . . . . . . . . . . . . . . Allies | -11 -10 -10 -9 -9 -8 -7 -7 -7 -6 -6 -6 -5 -5 -5 -5 -4 -4 -3 -3 -------- Run | Yrd Mat Min Mat Min Mat Fac Low Low Fac Low Low Fac Upp Upp Zhi Pro Fac Res Qua Total Allies 4 | . . . . . . . 4 . . . . . . . . . . . . Largest Group 4 | . . . . . . . 4 1 1 . . . . . . . . . . Highest-Rated Group 87 | . . . . . . . 87 16 16 . . . . . . . . . . Highest-Rated Ally 31 | . . . . . . . 31 16 16 . . . . . . . . . . Total Orders 2 | . . . . . . . . . . . . . . . . 1 . . 1 EXPLORE 2 | . . . . . . . . . . . . . . . . 1 . . 1 Ally Attacks 15 | . . . . . . . 13 . 2 . . . . . . . . . . Total Damage 231 | . . . . . . . 195 . 36 . . . . . . . . . . Kills 2 | . . . . . . . 2 . . . . . . . . . . . . Allies Corrupted . | . . . . . . . . . . . . . . . . . . . . Allies Melted . | . . . . . . . . . . . . . . . . . . . . Intel | -11 -10 -10 -9 -9 -8 -7 -7 -7 -6 -6 -6 -5 -5 -5 -5 -4 -4 -3 -3 ------- Run | Yrd Mat Min Mat Min Mat Fac Low Low Fac Low Low Fac Upp Upp Zhi Pro Fac Res Qua Active Infowar (turns) 7620 | 1 349 725 359 218 290 658 . . 801 1273 31 381 495 422 239 351 571 342 114 Sensors 2603 | . . . . . . 164 . . 757 1273 31 264 . . . . . . 114 Terrain 2044 | . . . 358 218 290 554 . . . . . 341 . . . . . 283 . Structural 197 | . . . . . . . . . . . . . . . . . 197 . . Traps 3168 | . . . . . 271 521 . . 801 469 . . 320 422 239 125 . . . Seismic 2233 | 1 349 725 359 218 290 290 . . . . . 1 . . . . . . . Machine Analysis 1089 | . . . . . . . . . . . . . . . . 177 571 341 . Cloaking 663 | . . . . . . . . . . . . . . . . . 349 314 . Jamming 2084 | . . . . . . . . . . . . 4 495 422 239 174 410 340 . Robot Analysis Total 4 | . . . . . . . . . . . . . . . 4 . . . . Derelict Logs Recovered 7 | . . . . 2 . . 2 . . 1 . . 1 1 . . . . . Drone Launches 5 | . . . . . . . . . . . . . . . . 3 . . 2 Drone Recoveries 1 | . . . . . . . . . . . . . . . . . . . 1 Exploration | -11 -10 -10 -9 -9 -8 -7 -7 -7 -6 -6 -6 -5 -5 -5 -5 -4 -4 -3 -3 ------------- Run | Yrd Mat Min Mat Min Mat Fac Low Low Fac Low Low Fac Upp Upp Zhi Pro Fac Res Qua Turns Passed 11198 | 94 349 725 359 218 290 687 2628 97 1100 1273 31 470 495 422 239 459 571 344 347 Spaces Moved 5824 | 50 111 314 184 162 155 361 865 52 544 594 16 182 392 339 184 348 380 265 326 Core 387 | 16 . . . . . . . . . . . . . . . 189 136 3 43 Treads . | . . . . . . . . . . . . . . . . . . . . Legs 1777 | . . . . . . . 475 . 506 594 16 135 . . . 51 . . . Wheels 3565 | 34 111 314 184 162 155 361 390 52 38 . . 47 392 339 184 108 244 262 188 Hover 95 | . . . . . . . . . . . . . . . . . . . 95 Flight . | . . . . . . . . . . . . . . . . . . . . Fastest Speed 50 | 50 90 140 116 113 113 116 140 190 175 175 175 105 120 120 120 50 50 50 50 Average Speed 153 | 84 115 140 119 114 126 133 289 190 183 175 175 161 120 120 120 97 88 101 77 Slowest Speed 720 | 100 140 140 120 145 128 210 540 190 720 175 175 257 120 120 120 190 130 129 300 Overloaded Moves . | . . . . . . . . . . . . . . . . . . . . Propulsion Burnouts . | . . . . . . . . . . . . . . . . . . . . Robots Hopped . | . . . . . . . . . . . . . . . . . . . . Potential Cave-ins 11 | . . 6 . . . . . . . . . 2 . . . . . 3 . Cave-ins Triggered 2 | . . . . . . . . . . . . 2 . . . . . . . Teleports 1 | . . . . . . . . . . . . . . . . 1 . . . Exploration Rate (%) 35 | 4 25 62 23 33 20 12 85 8 19 73 6 5 58 48 62 72 11 14 66 Regions Visited 19 Branch Regions 11 Pre-discovered Areas . | . . . . . . . . . . . . . . . . . . . . Known Exits Taken 15 | . . . 1 . 1 1 1 1 1 1 1 1 1 1 1 1 1 1 . Unknown Exits Taken 4 | 1 1 1 . 1 . . . . . . . . . . . . . . . Scrap Searched 12 | . . 2 . 1 . . 5 . . 1 . . 1 1 . 1 . . . Spaces Dug 72 | . . . 6 . . 10 . . 3 . . 15 . . . . 14 19 5 Terrain Destroyed 733 | . . . 89 . . 74 111 . 3 18 33 49 74 55 . 147 41 34 5 Melee 56 | . . . . . . 10 . . 3 . . 15 . . . . 4 19 5 Projectile . | . . . . . . . . . . . . . . . . . . . . AOE 677 | . . . 89 . . 64 111 . . 18 33 34 74 55 . 147 37 15 . Terrain Rammed . | . . . . . . . . . . . . . . . . . . . . Walls Destroyed . | . . . . . . . . . . . . . . . . . . . . Machines Disabled . | . . . . . . . . . . . . . . . . . . . . Actions | -11 -10 -10 -9 -9 -8 -7 -7 -7 -6 -6 -6 -5 -5 -5 -5 -4 -4 -3 -3 --------- Run | Yrd Mat Min Mat Min Mat Fac Low Low Fac Low Low Fac Upp Upp Zhi Pro Fac Res Qua Total 7633 | 79 288 584 296 180 239 508 958 51 619 809 17 297 408 350 206 456 582 315 391 Wait 1130 | . 150 247 69 1 50 83 5 . 22 180 . 48 1 1 2 95 155 9 12 Move 5805 | 49 110 313 183 161 154 360 864 51 543 593 15 181 391 338 183 347 379 264 326 Hop . | . . . . . . . . . . . . . . . . . . . . Pick Up 137 | 12 1 11 15 7 13 12 9 . 5 6 . 6 8 6 9 1 7 3 6 Fast Attach 36 | 1 . . . . . . 9 . 4 . . . . . . 2 12 3 5 Attach 85 | 6 . 4 6 2 3 13 7 . . 1 . 16 4 1 2 5 7 3 5 Detach 6 | . . . . . . . 3 . . . . 1 . . . . . 1 1 Swap 30 | . 3 . 5 . . 4 3 . 5 4 1 2 . 1 1 . . 1 . Drop 58 | . 2 . 3 . 10 3 3 . 11 5 . 3 . 1 9 1 2 3 2 Fire 120 | 11 22 9 15 9 9 13 12 . . 3 1 2 3 2 . 5 2 1 1 Melee 161 | . . . . . . 20 4 . 29 16 . 38 1 . . . 17 22 14 Ram 7 | . . . . . . . . . . . . . . . . . 1 2 4 Kick . | . . . . . . . . . . . . . . . . . . . . Crush . | . . . . . . . . . . . . . . . . . . . . Escape Stasis 18 | . . . . . . . . . . . . . . . . . . 3 15 Rewire 39 | . . . . . . . 39 . . . . . . . . . . . . Trap . | . . . . . . . . . . . . . . . . . . . . Miscellaneous 1 | . . . . . . . . . . 1 . . . . . . . . . Route ------- -11/Scrapyard -10/Materials -10/Mines -9/Materials -9/Mines -8/Materials -7/Factory -7/Lower Caves -7/Lower Caves -6/Factory -6/Lower Caves -6/Lower Caves -5/Factory (discovered 2 exits: *Upp / [Ext]) -5/Upper Caves -5/Upper Caves -5/Zhirov -4/Proximity Caves -4/Factory (discovered 2 exits: *Res / Arm) -3/Research (discovered 2 exits: *Qua x2) -3/Quarantine History --------- Turn | Location | Event 8 | -11/Scrapyard | Discovered new exit (range 16) 95 | -11/Scrapyard | Entered Materials 303 | -10/Materials | Build established: Mutant 414 | -10/Materials | Destroyed 8 combat bots 439 | -10/Materials | Discovered new exit (range 5) 444 | -10/Materials | Entered Mines 445 | -10/Mines | Assembled infested the area 1071 | -10/Mines | Core integrity fell below 50% 1120 | -10/Mines | Lost 4 parts (1p3w) 1163 | -10/Mines | Discovered new exit (range 5) 1169 | -10/Mines | Entered Materials 1169 | -9/Materials | Evolved 2 slots: Propulsion x1, Utility x1 1262 | -9/Materials | Build established: Scavenger-Mutant 1267 | -9/Materials | Lost 3 parts (3n) 1392 | -9/Materials | Identified exit to Mines 1528 | -9/Materials | Entered Mines 1590 | -9/Mines | Learned 4 Materials zone layouts 1608 | -9/Mines | Met a Derelict shopkeep closing up shop 1681 | -9/Mines | Learned Materials stockpile data 1740 | -9/Mines | Discovered new exit (range 5) 1744 | -9/Mines | Received a Mining Laser from a helpful Derelict 1746 | -9/Mines | Entered Materials 1746 | -8/Materials | Evolved 2 slots: Utility x2 1747 | -8/Materials | Identified exit to Factory 2036 | -8/Materials | Entered Factory 2036 | -7/Factory | Evolved 2 slots: Utility x2 2051 | -7/Factory | Found Prototype Launcher 2058 | -7/Factory | Found Prototype Launcher 2065 | -7/Factory | Found Prototype Launcher 2076 | -7/Factory | Build established: Scavenger-Skirmisher 2581 | -7/Factory | Identified Rocket Array (x3) 2584 | -7/Factory | Core integrity fell below 50% 2621 | -7/Factory | Lost 8 parts (1p3n3u1w) 2694 | -7/Factory | Discovered new exit (range 16) 2722 | -7/Factory | Identified exit to Lower Caves 2723 | -7/Factory | Entered Lower Caves 2764 | -7/Lower Caves | Lost 4 parts (1p2n1u) 2871 | -7/Lower Caves | Build established: Mutant 3348 | -7/Lower Caves | Attracted the attention of an 0b10 outpost 3353 | -7/Lower Caves | Core integrity fell below 20% 3392 | -7/Lower Caves | Destroyed 9 combat bots 4017 | -7/Lower Caves | Entered an active Warlord outpost 4039 | -7/Lower Caves | A Commander dispatched an escort 4128 | -7/Lower Caves | Learned Factory stockpile data 4128 | -7/Lower Caves | Learned Factory terminal intel 5012 | -7/Lower Caves | Identified exit to Lower Caves 5351 | -7/Lower Caves | Entered another Lower Caves area 5351 | -7/Lower Caves | Accompanied by 3 allies 5352 | -7/Lower Caves | Commander's escort returned to base 5435 | -7/Lower Caves | Discovered new exit (range 8) 5446 | -7/Lower Caves | Identified exit to Factory 5448 | -7/Lower Caves | Entered Factory 5448 | -6/Factory | Accompanied by 1 ally 5448 | -6/Factory | Evolved 2 slots: Propulsion x2 5450 | -6/Factory | Loaded intel: 26 terminal locations 6230 | -6/Factory | Build established: Gladiator 6412 | -6/Factory | Cargo convoy interrupted 6481 | -6/Factory | Discovered new exit (range 10) 6497 | -6/Factory | Identified exit to Lower Caves 6548 | -6/Factory | Entered Lower Caves 7444 | -6/Lower Caves | Discovered new exit (range 8) 7481 | -6/Lower Caves | Learned 4 Factory zone layouts 7490 | -6/Lower Caves | Activated DRS Beacon 7811 | -6/Lower Caves | Identified exit to Lower Caves 7821 | -6/Lower Caves | Entered another Lower Caves area 7821 | -6/Lower Caves | Discovered new exit (range 10) 7843 | -6/Lower Caves | Identified exit to Factory 7852 | -6/Lower Caves | Entered Factory 7852 | -5/Factory | Evolved 2 slots: Power x1, Utility x1 7853 | -5/Factory | Identified exit to Upper Caves 8152 | -5/Factory | Discovered new exit (range 11) 8199 | -5/Factory | Crushed by falling debris 8199 | -5/Factory | System corruption reached 10% 8229 | -5/Factory | Crushed by falling debris 8260 | -5/Factory | Lost 18 parts (2p5n9u2w) 8322 | -5/Factory | Entered Upper Caves 8419 | -5/Upper Caves | Build established: Mutant 8600 | -5/Upper Caves | Encountered a Warlord checkpoint 8641 | -5/Upper Caves | Identified exit to Upper Caves 8817 | -5/Upper Caves | Entered another Upper Caves area 9220 | -5/Upper Caves | Discovered new exit (range 5) 9238 | -5/Upper Caves | Identified exit to Zhirov 9239 | -5/Upper Caves | Entered Zhirov 9239 | -5/Zhirov | Discovered new exit (range 3) 9250 | -5/Zhirov | Identified exit to Proximity Caves 9271 | -5/Zhirov | Met Zhirov 9321 | -5/Zhirov | Zhirov requested help retrieving the SGEMP Prototype 9344 | -5/Zhirov | Found Alien Artifact 9393 | -5/Zhirov | Found Alien Artifact 9460 | -5/Zhirov | Identified Integrated Reactor 9460 | -5/Zhirov | Installed Integrated Reactor, increased core energy generation (+10) 9478 | -5/Zhirov | Entered Proximity Caves 9535 | -4/Proximity Caves | Core integrity fell below 50% 9540 | -4/Proximity Caves | Identified Transdimensional Reconstructor 9540 | -4/Proximity Caves | Warped through subspace 9571 | -4/Proximity Caves | Lost 7 parts (1p1n3u2w) 9678 | -4/Proximity Caves | Lost 3 parts (1p2u) 9693 | -4/Proximity Caves | Core integrity fell below 20% 9749 | -4/Proximity Caves | Lost 3 parts (2n1u) 9900 | -4/Proximity Caves | Discovered new exit (range 24) 9920 | -4/Proximity Caves | Received a Behemoth hack from an annoying Tinkerer 9937 | -4/Proximity Caves | Identified exit to Factory 9937 | -4/Proximity Caves | Entered Factory 9937 | -4/Factory | Evolved 2 slots: Utility x2 9938 | -4/Factory | Identified exit to Research 9938 | -4/Factory | Identified exit to Armory 10017 | -4/Factory | Mak. Hacking Suite fried by hacking feedback 10508 | -4/Factory | Entered Research 10508 | -3/Research | Evolved 2 slots: Utility x2 10526 | -3/Research | Lost 5 parts (1p1n1u2w) 10703 | -3/Research | Identified exit to Quarantine 10797 | -3/Research | Spotted B-86 Titan 10844 | -3/Research | Spotted B-90 Cyclops 10852 | -3/Research | Entered Quarantine 10881 | -3/Quarantine | Lost 15 parts (2p2n9u2w) 10922 | -3/Quarantine | Core integrity fell below 50% 10950 | -3/Quarantine | Found Alien Slashing Weapon 10952 | -3/Quarantine | Identified Sigix Broadsword 10971 | -3/Quarantine | Lost 4 parts (3n1u) 11080 | -3/Quarantine | Scanned by Researcher 11112 | -3/Quarantine | Met incapacitated Sigix Warrior 11112 | -3/Quarantine | Lockdown squad dispatched 11123 | -3/Quarantine | Found Sigix Containment Pod 11126 | -3/Quarantine | Acquired the access code to the Sigix quarantine chamber 11131 | -3/Quarantine | Unlocked Sigix quarantine chamber 11152 | -3/Quarantine | Core integrity fell below 20% 11196 | -3/Quarantine | Spotted Lightning 11196 | -3/Quarantine | Spotted Lightning 11199 | -3/Quarantine | Destroyed by Lightning with EMDS Last Messages --------------- 11182_ Penetrated by Slug. 11184_ System corrupted: Heat flow error (+186). 11184_ Extracted schematic archive: Hds. Centrium Wheel. 11184_ U-05 Engineer builds a Wall. 11186_ Penetrated by Slug. 11186_ Sigix Broadsword destroyed. 11187_ Slug penetrates Cryopreservation Unit. 11187_ Penetrated by Slug. 11188_ Extracted schematic archive: Diametric Drive. 11189_ Penetrated by Slug. 11190_ Slug penetrates Wall. 11190_ Drone Bay destroyed. 11194_ Slug penetrates Cryopreservation Unit. 11196_ EMDS Slug penetrates Wall. 11197_ EMDS Slug penetrates U-05 Engineer. 11197_ U-05 Engineer destroyed. 11199_ Penetrated by EMDS Slug. Map ----- +----------------------------------------------------+ | ????????????????????????????????????????????????? | | ????????????????????????????????????????????????? | | ????????????????????????????????????????????????? | | ????????????????????????????????????????????????? | | ????????????????????????????????????????????????? | | ????????????????????????????????????????????????? | | ????????????????????????????????????????????????? | | ????????????????????????????????????????????????? | | ????????????????????????????????????????????????? | | ????????????????????????????????????????????????? | | ????????????????????????????????????????????????? | | ???????????????????????????????????##?##????????? | | ??????????????????????????????????# !? #???????? | | ??????????????????????????????????# ? | | ??????????????????????????????????# " ] ? | | ???????????????????##??#?#??##????? ?? | | ???????????????????? ? ? ? ?????? ???###### | | ???????????????????? " ??????# #????????? | | ????????????????????? T " " ???????# #????????? | | ????????????????????? """ ???????# #????????? | | ??????????????????????""!""????????# #????????? | | ??###########????????? """ ????????# #????????? | | ??#"""""""""#?????????? ?????????# #????????? | | ??#"""""""""#?????????? ?????? ### ##???????? | | ??#""" ]" T############/######k### ######### | | ??#"" ""! p p@ ^ h | | ??#"" " " ! i | | ??#"" """ *%= h | | ??#""" # ###+#############+### ##### | | ??#"""""""""###! #?????????###+####### | | ??#"""""""""###$""" """ #?????????# + | | ???##########?# """ """ #?????????# ##### | | ??????????????# """ """ #?????????# ????? | | ??????????????# hh #?????????# ""T"" ?????? | | ??????????????#$!! #?????????# """ """?????? | | ??????????????#=! #????????????&" "&??????? | | ??????????????# ! =#???????????""" ""??????? | | ??????????????###########?????????????? ???????? | | ??????????????????????????????????????###???????? | | | | | | | | | | | | | | | | | | | | | | | +----------------------------------------------------+ Best States ------------- Heat Dissipation 59 Energy Generation 51 Energy Capacity 580 Matter Stores 300 Matter Capacity 300 Sight Range 16 Robot Scan Range 16 Terrain Scan Range 16 Terrain Scan Density 110 Jamming Range 14 Cloak Strength 4 Power Amplification 30 Armor Coverage 1200 Propulsion Shielding 90 Weapon Shielding 66 Phase Shifting 5 Evasion (%) 52 Melee Accuracy 5 Launcher Accuracy 20 Energy Filtering 50 Offensive Hacking 11 Item Schematics ----------------- Imp. VTOL Module | -6/Factory | Scanalyzed Assault Drone Bay | -5/Zhirov | Free Exp. Heat Sink | -5/Zhirov | Free Exp. Optical Array | -5/Zhirov | Free Imp. Arc Thrower | -5/Zhirov | Free Exp. Energy Well | -3/Quarantine | Archive Exp. Coolant Injector | -3/Quarantine | Archive Hds. Centrium Wheel | -3/Quarantine | Archive Diametric Drive | -3/Quarantine | Archive Robot Schematics ------------------ None Fabricated ------------ Nothing Repaired ---------- Nothing Studied --------- Imp. VSS Leg | -6/Factory | Hacked Arm. Huge Wheel | -6/Factory | Hacked Wheel | -3/Research | Hacked Alien Tech Used ----------------- Integrated Reactor Transdimensional Reconstructor Sigix Broadsword Achievements -------------- None Challenges ------------ None Game ------ Seed StealthBraceDeck Manual? 0 Play Time 01:33:58 Cumulative 112.7 hours Start 2025.12.04 @ 21:52:15 End 2025.12.05 @ 10:29:36 Sessions 3 Manual Loads 0 Difficulty Rogue Special Mode None Game No. 162 Rogue 162 Adventurer 0 Explorer 0 Win Type - Total 1 Types 1/0/0/0/0/0/0/0/0/0 Lore% 60 Gallery% 56 Achievement% 42 Wizard Run 0 Options --------- Layout 2 ASCII 0 Keyboard 0 Movement Mouse Keybinds 0 Fullscreen 1 Font 16/SmallcapsGlow Map View 50x49 Zoom Use 58% Tactical HUD 1 Map Filters NONE Filters NONE Steam SD RUN: 761093da-a9fa-44cb-975e-4f9f10a8cc35